[Event "*** Titled Tuesday Blitz"]
[Site "Chess.com"]
[Date "2020.04.07"]
[Round "1"]
[White "Keranke"]
[Black "tufferguy"]
[Result "1-0"]
[WhiteElo "2779"]
[BlackElo "2410"]
[TimeControl "180+1"]
[EndTime "13:07:19 PDT"]
[Termination "Keranke won on time"]

1. d4 {[%clk 0:02:55.4]} 1... d5 {[%clk 0:02:58.1]} 2. Bf4 {[%clk 0:02:55.1]}
2... Nf6 {[%clk 0:02:56]} 3. e3 {[%clk 0:02:52.5]} 3... Bf5 {[%clk 0:02:52.3]}
4. c4 {[%clk 0:02:52.2]} 4... e6 {[%clk 0:02:52.2]} 5. Nc3 {[%clk 0:02:51.9]}
5... Bd6 {[%clk 0:02:50.8]} 6. Bxd6 {[%clk 0:02:45.9]} 6... Qxd6 {[%clk
0:02:51.7]} 7. Qb3 {[%clk 0:02:45.7]} 7... Qb6 {[%clk 0:02:01.3]} 8. c5 {[%clk
0:02:36.6]} 8... Qxb3 {[%clk 0:02:00.2]} 9. axb3 {[%clk 0:02:37.5]} 9... Nc6
{[%clk 0:02:00.6]} 10. Nf3 {[%clk 0:02:27.8]} 10... Ke7 {[%clk 0:01:56]} 11. Nd2
{[%clk 0:02:22.4]} 11... Nb4 {[%clk 0:01:54.3]} 12. Ra4 {[%clk 0:02:21.6]} 12...
a5 {[%clk 0:01:49]} 13. f3 {[%clk 0:02:19.5]} 13... Bd3 {[%clk 0:01:32.9]} 14.
Bxd3 {[%clk 0:02:14.1]} 14... Nxd3+ {[%clk 0:01:32.9]} 15. Ke2 {[%clk
0:02:14.7]} 15... Nb4 {[%clk 0:01:26.8]} 16. Nb5 {[%clk 0:01:51.4]} 16... Kd7
{[%clk 0:01:24.2]} 17. Rc1 {[%clk 0:01:38.8]} 17... h5 {[%clk 0:01:14.2]} 18. e4
{[%clk 0:01:25.7]} 18... h4 {[%clk 0:01:08.5]} 19. e5 {[%clk 0:01:16.3]} 19...
Nh5 {[%clk 0:01:03.8]} 20. Rca1 {[%clk 0:01:13]} 20... Nf4+ {[%clk 0:00:57.1]}
21. Kf1 {[%clk 0:01:13]} 21... b6 {[%clk 0:00:42.9]} 22. cxb6 {[%clk 0:01:12.5]}
22... cxb6 {[%clk 0:00:42.8]} 23. Nd6 {[%clk 0:01:13]} 23... f6 {[%clk
0:00:37.9]} 24. Rc1 {[%clk 0:01:01.8]} 24... fxe5 {[%clk 0:00:34.2]} 25. Nf7
{[%clk 0:01:01.8]} 25... Rhc8 {[%clk 0:00:25.8]} 26. Nxe5+ {[%clk 0:01:02.1]}
26... Kd6 {[%clk 0:00:25]} 27. Raa1 {[%clk 0:01:02.3]} 27... Nfd3 {[%clk
0:00:23.6]} 28. Rc3 {[%clk 0:00:58.9]} 28... Nxe5 {[%clk 0:00:22]} 29. dxe5+
{[%clk 0:00:58.8]} 29... Kxe5 {[%clk 0:00:22.4]} 30. Re1+ {[%clk 0:00:51.2]}
30... Kf6 {[%clk 0:00:19.6]} 31. f4 {[%clk 0:00:48.9]} 31... Rxc3 {[%clk
0:00:17.2]} 32. bxc3 {[%clk 0:00:49.8]} 32... Nd3 {[%clk 0:00:17.7]} 33. Re3
{[%clk 0:00:49.5]} 33... Nc5 {[%clk 0:00:16.5]} 34. Rh3 {[%clk 0:00:45.5]} 34...
a4 {[%clk 0:00:09.2]} 35. bxa4 {[%clk 0:00:45.1]} 35... Rxa4 {[%clk 0:00:08.1]}
36. Rxh4 {[%clk 0:00:44.4]} 36... Ra2 {[%clk 0:00:07.8]} 37. Nf3 {[%clk
0:00:41.5]} 37... Ne4 {[%clk 0:00:08]} 38. Rh8 {[%clk 0:00:36.5]} 38... Nxc3
{[%clk 0:00:06.3]} 39. Rb8 {[%clk 0:00:36.4]} 39... b5 {[%clk 0:00:03.8]} 40. g4
{[%clk 0:00:31.7]} 1-0

[Event "*** Titled Tuesday Blitz"]
[Site "Chess.com"]
[Date "2020.04.07"]
[Round "1"]
[White "violetflower04"]
[Black "SARGISMV"]
[Result "1-0"]
[WhiteElo "2210"]
[BlackElo "2527"]
[TimeControl "180+1"]
[EndTime "13:07:20 PDT"]
[Termination "violetflower04 won by resignation"]

1. e4 {[%clk 0:03:00.9]} 1... e6 {[%clk 0:02:59.7]} 2. d4 {[%clk 0:03:01.4]}
2... d5 {[%clk 0:02:59.8]} 3. e5 {[%clk 0:03:02.2]} 3... c5 {[%clk 0:02:59.2]}
4. c3 {[%clk 0:03:03.1]} 4... Nc6 {[%clk 0:02:56.6]} 5. Nf3 {[%clk 0:03:03.7]}
5... Nh6 {[%clk 0:02:56]} 6. Bd3 {[%clk 0:03:00.9]} 6... cxd4 {[%clk 0:02:52.5]}
7. cxd4 {[%clk 0:03:01.8]} 7... Nf5 {[%clk 0:02:51.8]} 8. Bxf5 {[%clk 0:02:59]}
8... exf5 {[%clk 0:02:50.1]} 9. Nc3 {[%clk 0:02:57]} 9... Be6 {[%clk 0:02:47.6]}
10. O-O {[%clk 0:02:55.3]} 10... Be7 {[%clk 0:02:46.2]} 11. a3 {[%clk 0:02:54]}
11... Rc8 {[%clk 0:02:43.3]} 12. Qd3 {[%clk 0:02:49.7]} 12... g5 {[%clk
0:02:43.3]} 13. b4 {[%clk 0:02:43.8]} 13... f4 {[%clk 0:02:40.2]} 14. Nd2 {[%clk
0:02:29.5]} 14... Qd7 {[%clk 0:02:39.8]} 15. Nb3 {[%clk 0:02:29.2]} 15... b6
{[%clk 0:02:38.8]} 16. b5 {[%clk 0:02:17.8]} 16... Nd8 {[%clk 0:02:29.7]} 17.
Bb2 {[%clk 0:02:14.2]} 17... Bf5 {[%clk 0:02:29.8]} 18. Qf3 {[%clk 0:02:10.7]}
18... Ne6 {[%clk 0:02:20.3]} 19. Qxd5 {[%clk 0:02:06.7]} 19... Qxd5 {[%clk
0:02:01]} 20. Nxd5 {[%clk 0:02:07.6]} 20... Rc2 {[%clk 0:02:01]} 21. Rab1 {[%clk
0:01:37.6]} 21... Bd3 {[%clk 0:01:39.2]} 22. Rfc1 {[%clk 0:01:32.2]} 22... Kd7
{[%clk 0:01:30.4]} 23. Nxe7 {[%clk 0:01:24.5]} 23... Kxe7 {[%clk 0:01:31.3]} 24.
d5 {[%clk 0:01:23.7]} 24... Nd8 {[%clk 0:00:57.7]} 25. Nd4 {[%clk 0:01:21.2]}
25... Rc5 {[%clk 0:00:48.6]} 26. Rxc5 {[%clk 0:01:19.5]} 26... bxc5 {[%clk
0:00:48.8]} 27. Rd1 {[%clk 0:01:11.8]} 27... cxd4 {[%clk 0:00:44.4]} 28. Rxd3
{[%clk 0:01:11.7]} 28... Nb7 {[%clk 0:00:45]} 29. Bxd4 {[%clk 0:01:06]} 29...
Rc8 {[%clk 0:00:43.5]} 30. Rc3 {[%clk 0:01:06.6]} 30... Rd8 {[%clk 0:00:33.4]}
31. Rc7+ {[%clk 0:01:05.5]} 31... Rd7 {[%clk 0:00:33.7]} 32. Rxd7+ {[%clk
0:01:02.3]} 32... Kxd7 {[%clk 0:00:34.6]} 33. Bxa7 {[%clk 0:01:03]} 33... Na5
{[%clk 0:00:34.9]} 34. Bc5 {[%clk 0:00:59.5]} 34... Nb3 {[%clk 0:00:34.3]} 35.
Bb4 {[%clk 0:00:56.4]} 35... Nd4 {[%clk 0:00:33.9]} 36. a4 {[%clk 0:00:57.1]}
36... g4 {[%clk 0:00:31.3]} 37. Kf1 {[%clk 0:00:56.9]} 37... f3 {[%clk
0:00:31.6]} 38. Bc5 {[%clk 0:00:50.2]} 38... Nb3 {[%clk 0:00:28.6]} 39. Bb4
{[%clk 0:00:49.4]} 39... Nd4 {[%clk 0:00:28.6]} 40. gxf3 {[%clk 0:00:47.7]}
40... Nxf3 {[%clk 0:00:28.3]} 41. Bc3 {[%clk 0:00:44.3]} 41... Nxh2+ {[%clk
0:00:27]} 42. Kg2 {[%clk 0:00:45]} 42... Nf3 {[%clk 0:00:27.9]} 43. Kg3 {[%clk
0:00:45.6]} 43... h5 {[%clk 0:00:27.6]} 44. a5 {[%clk 0:00:44.4]} 44... Ng5
{[%clk 0:00:25.9]} 45. Bd4 {[%clk 0:00:40.3]} 45... Ne4+ {[%clk 0:00:15.5]} 46.
Kf4 {[%clk 0:00:39]} 46... Nd2 {[%clk 0:00:14.5]} 47. a6 {[%clk 0:00:38.5]}
47... Nb3 {[%clk 0:00:15.1]} 48. a7 {[%clk 0:00:38.4]} 48... Nxd4 {[%clk
0:00:15.4]} 49. a8=Q {[%clk 0:00:38.5]} 49... Nxb5 {[%clk 0:00:15.5]} 50. Qb7+
{[%clk 0:00:38.3]} 50... Nc7 {[%clk 0:00:14.1]} 51. d6 {[%clk 0:00:38.9]} 51...
Ke6 {[%clk 0:00:12.7]} 1-0

[Event "*** Titled Tuesday Blitz"]
[Site "Chess.com"]
[Date "2020.04.07"]
[Round "1"]
[White "mshuaau0"]
[Black "Bathory44"]
[Result "1-0"]
[WhiteElo "2204"]
[BlackElo "2537"]
[TimeControl "180+1"]
[EndTime "13:07:22 PDT"]
[Termination "mshuaau0 won by checkmate"]

1. e4 {[%clk 0:03:00.9]} 1... e6 {[%clk 0:02:57.1]} 2. d4 {[%clk 0:03:00]} 2...
d5 {[%clk 0:02:56.5]} 3. Nd2 {[%clk 0:03:00.6]} 3... a6 {[%clk 0:02:56.1]} 4.
Ngf3 {[%clk 0:03:00.3]} 4... c5 {[%clk 0:02:55.9]} 5. exd5 {[%clk 0:02:59.7]}
5... exd5 {[%clk 0:02:55.2]} 6. dxc5 {[%clk 0:02:59.7]} 6... Bxc5 {[%clk
0:02:55]} 7. Nb3 {[%clk 0:03:00.1]} 7... Bb6 {[%clk 0:02:55.1]} 8. h3 {[%clk
0:02:56.3]} 8... Nf6 {[%clk 0:02:55.1]} 9. Bd3 {[%clk 0:02:56.1]} 9... O-O
{[%clk 0:02:54.6]} 10. O-O {[%clk 0:02:56.6]} 10... Nc6 {[%clk 0:02:55]} 11. c3
{[%clk 0:02:54.5]} 11... Re8 {[%clk 0:02:54]} 12. Bg5 {[%clk 0:02:53.5]} 12...
Qd6 {[%clk 0:02:51.1]} 13. Nbd4 {[%clk 0:02:52.3]} 13... Ne4 {[%clk 0:02:26.8]}
14. Be3 {[%clk 0:02:40.6]} 14... Bc7 {[%clk 0:02:22.3]} 15. Nxc6 {[%clk
0:02:26.4]} 15... bxc6 {[%clk 0:02:17.7]} 16. Re1 {[%clk 0:02:17.8]} 16... Rb8
{[%clk 0:02:13.7]} 17. Qc2 {[%clk 0:02:15.4]} 17... Bf5 {[%clk 0:02:07.4]} 18.
c4 {[%clk 0:02:14.7]} 18... Bg6 {[%clk 0:01:48.5]} 19. c5 {[%clk 0:02:12.4]}
19... Qd7 {[%clk 0:01:37.1]} 20. a3 {[%clk 0:02:10.8]} 20... f5 {[%clk 0:01:25]}
21. b4 {[%clk 0:01:58.5]} 21... f4 {[%clk 0:01:15.5]} 22. Bd4 {[%clk 0:01:57.6]}
22... Bh5 {[%clk 0:00:49.5]} 23. Bxe4 {[%clk 0:01:51.6]} 23... dxe4 {[%clk
0:00:48.7]} 24. Rxe4 {[%clk 0:01:49.1]} 24... Bxf3 {[%clk 0:00:48.4]} 25. gxf3
{[%clk 0:01:46.1]} 25... Qxh3 {[%clk 0:00:47.3]} 26. Qb3+ {[%clk 0:01:41.3]}
26... Kh8 {[%clk 0:00:45.1]} 27. Rae1 {[%clk 0:01:40.5]} 27... Qh5 {[%clk
0:00:24.4]} 28. Qc3 {[%clk 0:01:29]} 28... Qg6+ {[%clk 0:00:21.2]} 29. Kf1
{[%clk 0:01:28.6]} 29... Rxe4 {[%clk 0:00:17.5]} 30. Rxe4 {[%clk 0:01:27.8]}
30... Rd8 {[%clk 0:00:17.9]} 31. Re7 {[%clk 0:01:20.1]} 31... Qb1+ {[%clk
0:00:17.8]} 32. Kg2 {[%clk 0:01:18.6]} 32... Qg6+ {[%clk 0:00:18.2]} 33. Kf1
{[%clk 0:01:18.3]} 33... Qb1+ {[%clk 0:00:18.1]} 34. Ke2 {[%clk 0:01:03.6]}
34... Qa2+ {[%clk 0:00:18.1]} 35. Qb2 {[%clk 0:01:03.4]} 35... Qc4+ {[%clk
0:00:13]} 36. Ke1 {[%clk 0:00:56.7]} 36... Bb8 {[%clk 0:00:07]} 37. Bxg7+ {[%clk
0:00:42.5]} 37... Kg8 {[%clk 0:00:07.1]} 38. Bh6 {[%clk 0:00:33.8]} 38... Be5
{[%clk 0:00:03.5]} 39. Rxe5 {[%clk 0:00:28.8]} 39... Qd3 {[%clk 0:00:02.4]} 40.
Rg5+ {[%clk 0:00:28.3]} 40... Kf7 {[%clk 0:00:02.5]} 41. Qg7+ {[%clk 0:00:27.7]}
41... Ke6 {[%clk 0:00:02.1]} 42. Re5# {[%clk 0:00:27.1]} 1-0

[Event "*** Titled Tuesday Blitz"]
[Site "Chess.com"]
[Date "2020.04.07"]
[Round "1"]
[White "mattcolins2025"]
[Black "dragos420"]
[Result "1/2-1/2"]
[WhiteElo "2174"]
[BlackElo "2518"]
[TimeControl "180+1"]
[EndTime "13:07:22 PDT"]
[Termination "Game drawn by agreement"]

1. d4 {[%clk 0:03:00.9]} 1... Nf6 {[%clk 0:02:58.4]} 2. c4 {[%clk 0:03:01.1]}
2... e6 {[%clk 0:02:58.6]} 3. Nc3 {[%clk 0:03:01.4]} 3... Bb4 {[%clk 0:02:55.7]}
4. Qc2 {[%clk 0:03:01.7]} 4... O-O {[%clk 0:02:55.4]} 5. a3 {[%clk 0:03:01.8]}
5... Bxc3+ {[%clk 0:02:54.9]} 6. Qxc3 {[%clk 0:03:02.5]} 6... d5 {[%clk
0:02:55.1]} 7. Bg5 {[%clk 0:03:02.1]} 7... dxc4 {[%clk 0:02:52]} 8. Qxc4 {[%clk
0:03:01]} 8... b6 {[%clk 0:02:52.3]} 9. Rd1 {[%clk 0:02:58.8]} 9... Ba6 {[%clk
0:02:50.5]} 10. Qa4 {[%clk 0:02:58.8]} 10... Qd7 {[%clk 0:02:47.8]} 11. Qc2
{[%clk 0:02:58.7]} 11... Qe7 {[%clk 0:02:47.9]} 12. Nf3 {[%clk 0:02:57.4]} 12...
h6 {[%clk 0:02:45.5]} 13. Bxf6 {[%clk 0:02:55.7]} 13... Qxf6 {[%clk 0:02:42.6]}
14. g3 {[%clk 0:02:52.8]} 14... c5 {[%clk 0:02:31.3]} 15. Bg2 {[%clk 0:02:50.9]}
15... Bb7 {[%clk 0:02:28.7]} 16. O-O {[%clk 0:02:43]} 16... Nd7 {[%clk
0:02:21.4]} 17. Ne5 {[%clk 0:02:15.7]} 17... Bxg2 {[%clk 0:01:50.5]} 18. Nxd7
{[%clk 0:02:13.6]} 18... Qe7 {[%clk 0:01:50.5]} 19. Kxg2 {[%clk 0:02:11.3]}
19... Qxd7 {[%clk 0:01:50.6]} 20. dxc5 {[%clk 0:02:08.8]} 20... Qc6+ {[%clk
0:01:48.2]} 21. Kg1 {[%clk 0:02:08.1]} 21... Rac8 {[%clk 0:01:47.8]} 22. b4
{[%clk 0:02:04.7]} 22... bxc5 {[%clk 0:01:39.2]} 23. bxc5 {[%clk 0:01:58.5]}
23... Qxc5 {[%clk 0:01:37.8]} 24. Qxc5 {[%clk 0:01:55.5]} 24... Rxc5 {[%clk
0:01:38.7]} 25. Rd7 {[%clk 0:01:55.5]} 25... Ra5 {[%clk 0:01:37.5]} 26. Ra1
{[%clk 0:01:55.2]} 26... Rc8 {[%clk 0:01:36.4]} 27. Rb1 {[%clk 0:01:49.8]} 27...
Rxa3 {[%clk 0:01:00.7]} 28. Rbb7 {[%clk 0:01:48.1]} 28... Rf8 {[%clk 0:01:00.5]}
29. Rxa7 {[%clk 0:01:47.3]} 29... Rxa7 {[%clk 0:01:01.4]} 30. Rxa7 {[%clk
0:01:47.7]} 30... g5 {[%clk 0:01:02.2]} 31. g4 {[%clk 0:01:37.9]} 31... Kg7
{[%clk 0:01:02.7]} 32. Kg2 {[%clk 0:01:37.5]} 32... Kf6 {[%clk 0:01:00.8]} 33.
Kf3 {[%clk 0:01:36.9]} 33... Rb8 {[%clk 0:00:59.9]} 34. e3 {[%clk 0:01:32.6]}
34... Rb1 {[%clk 0:00:56.4]} 35. h3 {[%clk 0:01:30.8]} 35... Rh1 {[%clk
0:00:55.6]} 36. Kg2 {[%clk 0:01:30]} 36... Rc1 {[%clk 0:00:56.5]} 37. Kf3 {[%clk
0:01:29.2]} 37... Kg6 {[%clk 0:00:56.1]} 38. Ra8 {[%clk 0:01:26.6]} 38... Rc7
{[%clk 0:00:53.1]} 39. Kg3 {[%clk 0:01:23.7]} 39... Kg7 {[%clk 0:00:46.7]} 40.
h4 {[%clk 0:01:21.3]} 40... Rc2 {[%clk 0:00:43.2]} 41. hxg5 {[%clk 0:01:20.6]}
41... hxg5 {[%clk 0:00:44.1]} 42. Ra5 {[%clk 0:01:20.5]} 42... Kf6 {[%clk
0:00:43.5]} 43. Kf3 {[%clk 0:01:18.8]} 43... Kg6 {[%clk 0:00:41.1]} 44. Kg3
{[%clk 0:01:18.3]} 44... Rc3 {[%clk 0:00:39.6]} 45. Rb5 {[%clk 0:01:14.6]} 45...
f5 {[%clk 0:00:36.8]} 46. gxf5+ {[%clk 0:01:12.3]} 46... exf5 {[%clk 0:00:37.7]}
47. Rb6+ {[%clk 0:01:12.4]} 47... Kh5 {[%clk 0:00:35.4]} 48. Rb8 {[%clk
0:01:06.2]} 48... f4+ {[%clk 0:00:30.2]} 49. Kf3 {[%clk 0:01:01.8]} 49... fxe3
{[%clk 0:00:27.8]} 50. Rh8+ {[%clk 0:01:01.6]} 50... Kg6 {[%clk 0:00:26.4]} 51.
fxe3 {[%clk 0:01:01.6]} 51... Kf5 {[%clk 0:00:23.7]} 52. Rf8+ {[%clk 0:01:00.7]}
52... Kg6 {[%clk 0:00:23.6]} 53. Rg8+ {[%clk 0:01:00.2]} 53... Kf6 {[%clk
0:00:23.8]} 54. Rf8+ {[%clk 0:00:58.8]} 54... Kg7 {[%clk 0:00:24]} 55. Ra8
{[%clk 0:00:58.6]} 55... Rc5 {[%clk 0:00:23.6]} 56. Ra6 {[%clk 0:00:54.4]} 56...
Re5 {[%clk 0:00:22.1]} 57. e4 {[%clk 0:00:51.4]} 57... Re7 {[%clk 0:00:20.6]}
58. Kg4 {[%clk 0:00:49.1]} 58... Rxe4+ {[%clk 0:00:20.2]} 59. Kxg5 {[%clk
0:00:49.2]} 59... Re5+ {[%clk 0:00:20.3]} 60. Kf4 {[%clk 0:00:49.2]} 1/2-1/2

[Event "*** Titled Tuesday Blitz"]
[Site "Chess.com"]
[Date "2020.04.07"]
[Round "1"]
[White "guillembaches"]
[Black "mrkvoz"]
[Result "0-1"]
[WhiteElo "2439"]
[BlackElo "2829"]
[TimeControl "180+1"]
[EndTime "13:07:23 PDT"]
[Termination "mrkvoz won by checkmate"]

1. e4 {[%clk 0:02:58.7]} 1... d6 {[%clk 0:02:59.8]} 2. d4 {[%clk 0:02:58.1]}
2... Nf6 {[%clk 0:02:59.5]} 3. f3 {[%clk 0:02:58]} 3... e5 {[%clk 0:02:59.2]} 4.
Ne2 {[%clk 0:02:57.4]} 4... exd4 {[%clk 0:02:57.7]} 5. Nxd4 {[%clk 0:02:58.3]}
5... d5 {[%clk 0:02:58.2]} 6. e5 {[%clk 0:02:56.8]} 6... Nh5 {[%clk 0:02:58.4]}
7. Be3 {[%clk 0:02:42.9]} 7... c5 {[%clk 0:02:58]} 8. Nb3 {[%clk 0:02:41.1]}
8... d4 {[%clk 0:02:56.8]} 9. Bf2 {[%clk 0:02:38.5]} 9... Nc6 {[%clk 0:02:56.6]}
10. Bb5 {[%clk 0:02:32.6]} 10... Nf4 {[%clk 0:02:45.4]} 11. O-O {[%clk
0:02:22.5]} 11... Be7 {[%clk 0:02:45.5]} 12. N1d2 {[%clk 0:02:03.6]} 12... O-O
{[%clk 0:02:35.9]} 13. Bxc6 {[%clk 0:02:03.3]} 13... bxc6 {[%clk 0:02:36.8]} 14.
Ne4 {[%clk 0:01:57.1]} 14... Qd5 {[%clk 0:02:19.5]} 15. Qd2 {[%clk 0:01:35.9]}
15... Ng6 {[%clk 0:02:07.8]} 16. Bg3 {[%clk 0:01:24.1]} 16... Nxe5 {[%clk
0:02:05.9]} 17. Rae1 {[%clk 0:01:17]} 17... Nc4 {[%clk 0:02:01.6]} 18. Qe2
{[%clk 0:01:10.2]} 18... Nxb2 {[%clk 0:01:47.9]} 19. Nc3 {[%clk 0:00:45.8]}
19... dxc3 {[%clk 0:01:47.6]} 20. Qxe7 {[%clk 0:00:45.4]} 20... Ba6 {[%clk
0:01:37.9]} 21. Re5 {[%clk 0:00:39.4]} 21... Qd8 {[%clk 0:01:28.4]} 22. Rfe1
{[%clk 0:00:25.4]} 22... Bc4 {[%clk 0:01:23.4]} 23. Qxc5 {[%clk 0:00:19.5]}
23... Qb6 {[%clk 0:01:07.9]} 24. Bf2 {[%clk 0:00:14.7]} 24... Qa6 {[%clk
0:00:55.8]} 25. Rg5 {[%clk 0:00:11.4]} 25... f6 {[%clk 0:00:50.3]} 26. Rg3
{[%clk 0:00:08.8]} 26... Rf7 {[%clk 0:00:30.8]} 27. Qd4 {[%clk 0:00:06.8]} 27...
Qxa2 {[%clk 0:00:21.5]} 28. Qxc3 {[%clk 0:00:06]} 28... Bxb3 {[%clk 0:00:19.2]}
29. cxb3 {[%clk 0:00:05.5]} 29... Rb8 {[%clk 0:00:19.2]} 30. Qxc6 {[%clk
0:00:05.5]} 30... Qxb3 {[%clk 0:00:18.5]} 31. Re8+ {[%clk 0:00:05.5]} 31... Rxe8
{[%clk 0:00:17.4]} 32. Qxe8+ {[%clk 0:00:06.4]} 32... Rf8 {[%clk 0:00:18.2]} 33.
Qe1 {[%clk 0:00:05.3]} 33... Qd1 {[%clk 0:00:18]} 34. Qxd1 {[%clk 0:00:05.6]}
34... Nxd1 {[%clk 0:00:18.9]} 35. Bxa7 {[%clk 0:00:06]} 35... Ra8 {[%clk
0:00:19.5]} 36. Bd4 {[%clk 0:00:05.3]} 36... Ra4 {[%clk 0:00:20]} 37. Bxf6
{[%clk 0:00:05.4]} 37... g6 {[%clk 0:00:20.1]} 38. f4 {[%clk 0:00:04.7]} 38...
Rxf4 {[%clk 0:00:18.9]} 39. Bg5 {[%clk 0:00:03.9]} 39... Re4 {[%clk 0:00:18.6]}
40. Rd3 {[%clk 0:00:03.3]} 40... Re1# {[%clk 0:00:18.3]} 0-1

[Event "*** Titled Tuesday Blitz"]
[Site "Chess.com"]
[Date "2020.04.07"]
[Round "1"]
[White "JustKid"]
[Black "piscatorox"]
[Result "1-0"]
[WhiteElo "2584"]
[BlackElo "2238"]
[TimeControl "180+1"]
[EndTime "13:07:24 PDT"]
[Termination "JustKid won by checkmate"]

1. d4 {[%clk 0:02:58.4]} 1... Nf6 {[%clk 0:02:59.2]} 2. Bf4 {[%clk 0:02:58.5]}
2... g6 {[%clk 0:03:00.1]} 3. Nf3 {[%clk 0:02:57.5]} 3... Bg7 {[%clk 0:03:00.2]}
4. e3 {[%clk 0:02:58.1]} 4... d6 {[%clk 0:03:00.6]} 5. h3 {[%clk 0:02:58.6]}
5... Nbd7 {[%clk 0:03:01]} 6. c3 {[%clk 0:02:59.4]} 6... O-O {[%clk 0:02:59.8]}
7. Bh2 {[%clk 0:03:00.3]} 7... c6 {[%clk 0:02:59.5]} 8. Be2 {[%clk 0:03:00]}
8... a5 {[%clk 0:02:58.4]} 9. O-O {[%clk 0:02:59.9]} 9... Qe8 {[%clk 0:02:53.9]}
10. c4 {[%clk 0:02:54.3]} 10... e5 {[%clk 0:02:49.7]} 11. Nc3 {[%clk 0:02:54.7]}
11... Qe7 {[%clk 0:02:38.9]} 12. Qc2 {[%clk 0:02:54.3]} 12... h6 {[%clk
0:02:35.9]} 13. Rfd1 {[%clk 0:02:54.1]} 13... Ne8 {[%clk 0:02:23.1]} 14. e4
{[%clk 0:02:35.3]} 14... Nc7 {[%clk 0:02:05.8]} 15. d5 {[%clk 0:02:24.1]} 15...
c5 {[%clk 0:01:56.1]} 16. Nd2 {[%clk 0:02:10.8]} 16... f5 {[%clk 0:01:54.5]} 17.
f3 {[%clk 0:01:58.1]} 17... f4 {[%clk 0:01:52.7]} 18. a3 {[%clk 0:01:57.2]}
18... g5 {[%clk 0:01:38.8]} 19. b4 {[%clk 0:01:47.8]} 19... h5 {[%clk
0:01:23.9]} 20. bxc5 {[%clk 0:01:30.8]} 20... Nxc5 {[%clk 0:01:22.7]} 21. Nb3
{[%clk 0:01:29.6]} 21... Nxb3 {[%clk 0:01:13.3]} 22. Qxb3 {[%clk 0:01:29.7]}
22... Na6 {[%clk 0:01:12]} 23. Qb6 {[%clk 0:01:26.8]} 23... Nc5 {[%clk
0:01:10.4]} 24. Nb5 {[%clk 0:01:24.7]} 24... Ra6 {[%clk 0:01:10.2]} 25. Qc7
{[%clk 0:01:19.9]} 25... Qf6 {[%clk 0:00:49.1]} 26. Kf1 {[%clk 0:01:03.3]} 26...
g4 {[%clk 0:00:48.7]} 27. hxg4 {[%clk 0:01:02.5]} 27... hxg4 {[%clk 0:00:48.2]}
28. Bg1 {[%clk 0:01:03.2]} 28... g3 {[%clk 0:00:22.9]} 29. Bxc5 {[%clk
0:00:57.3]} 29... dxc5 {[%clk 0:00:22.5]} 30. d6 {[%clk 0:00:56.4]} 30... Qh4
{[%clk 0:00:19.5]} 31. Qxc5 {[%clk 0:00:55.3]} 31... Rc6 {[%clk 0:00:15.8]} 32.
Qg1 {[%clk 0:00:54]} 32... Be6 {[%clk 0:00:14.8]} 33. Rac1 {[%clk 0:00:49.8]}
33... Rd8 {[%clk 0:00:09.9]} 34. c5 {[%clk 0:00:49.4]} 34... Bf6 {[%clk
0:00:07.9]} 35. Nc7 {[%clk 0:00:48.3]} 35... Kf7 {[%clk 0:00:06.8]} 36. Nxe6
{[%clk 0:00:47.7]} 36... Kxe6 {[%clk 0:00:06.8]} 37. Bc4+ {[%clk 0:00:48.5]}
37... Kd7 {[%clk 0:00:06.1]} 38. Bb5 {[%clk 0:00:49.1]} 38... Rh8 {[%clk
0:00:04.6]} 39. Bxc6+ {[%clk 0:00:46.1]} 39... Kxc6 {[%clk 0:00:04.6]} 40. d7
{[%clk 0:00:45.4]} 40... Qg5 {[%clk 0:00:02.6]} 41. Rd6+ {[%clk 0:00:39.6]}
41... Kc7 {[%clk 0:00:03]} 42. Rcd1 {[%clk 0:00:36.1]} 42... Bd8 {[%clk
0:00:02.4]} 43. c6 {[%clk 0:00:36.2]} 43... Qg8 {[%clk 0:00:02.4]} 44. R1d5
{[%clk 0:00:29.9]} 44... bxc6 {[%clk 0:00:01.4]} 45. Qa7# {[%clk 0:00:29.9]} 1-0

[Event "*** Titled Tuesday Blitz"]
[Site "Chess.com"]
[Date "2020.04.07"]
[Round "1"]
[White "SlavenPastar"]
[Black "JesseFebruary"]
[Result "1-0"]
[WhiteElo "2501"]
[BlackElo "1762"]
[TimeControl "180+1"]
[EndTime "13:07:26 PDT"]
[Termination "SlavenPastar won on time"]

1. d4 {[%clk 0:02:55.7]} 1... Nf6 {[%clk 0:02:58.8]} 2. c4 {[%clk 0:02:55.1]}
2... e6 {[%clk 0:02:57.9]} 3. Nc3 {[%clk 0:02:54.7]} 3... d5 {[%clk 0:02:57.2]}
4. cxd5 {[%clk 0:02:51.9]} 4... Nxd5 {[%clk 0:02:54.8]} 5. e4 {[%clk 0:02:50.7]}
5... Nxc3 {[%clk 0:02:54.7]} 6. bxc3 {[%clk 0:02:51.6]} 6... c5 {[%clk
0:02:54.4]} 7. Nf3 {[%clk 0:02:51.4]} 7... cxd4 {[%clk 0:02:51]} 8. cxd4 {[%clk
0:02:49.7]} 8... Bb4+ {[%clk 0:02:51.5]} 9. Bd2 {[%clk 0:02:50]} 9... Bxd2+
{[%clk 0:02:49]} 10. Qxd2 {[%clk 0:02:49.6]} 10... O-O {[%clk 0:02:48.4]} 11.
Bc4 {[%clk 0:02:36]} 11... Bd7 {[%clk 0:02:24.1]} 12. O-O {[%clk 0:02:34.7]}
12... a6 {[%clk 0:02:09.4]} 13. a4 {[%clk 0:02:18.4]} 13... Bc6 {[%clk
0:01:55.4]} 14. d5 {[%clk 0:02:17.7]} 14... exd5 {[%clk 0:01:54.6]} 15. exd5
{[%clk 0:02:15.9]} 15... Bd7 {[%clk 0:01:53.1]} 16. h3 {[%clk 0:02:02.2]} 16...
Bf5 {[%clk 0:01:46.6]} 17. Qf4 {[%clk 0:01:55.9]} 17... Bg6 {[%clk 0:01:40.2]}
18. Rfe1 {[%clk 0:01:34.9]} 18... Nd7 {[%clk 0:01:36.3]} 19. d6 {[%clk
0:01:31.7]} 19... Rc8 {[%clk 0:01:08.4]} 20. Bd5 {[%clk 0:01:21.3]} 20... Nc5
{[%clk 0:00:42.2]} 21. Re7 {[%clk 0:01:08.3]} 21... Qb6 {[%clk 0:00:30.6]} 22.
a5 {[%clk 0:00:51.1]} 22... Qb2 {[%clk 0:00:19.7]} 23. Rf1 {[%clk 0:00:48.1]}
23... Nd3 {[%clk 0:00:19]} 24. Qg3 {[%clk 0:00:35.6]} 24... b6 {[%clk
0:00:18.7]} 25. axb6 {[%clk 0:00:31.1]} 25... Qxb6 {[%clk 0:00:19.6]} 26. Nh4
{[%clk 0:00:30.9]} 26... Qd4 {[%clk 0:00:15.8]} 27. Nxg6 {[%clk 0:00:21.8]}
27... hxg6 {[%clk 0:00:16.7]} 28. Ba2 {[%clk 0:00:16.5]} 28... Rcd8 {[%clk
0:00:12.4]} 29. Qxg6 {[%clk 0:00:14.9]} 29... Ne5 {[%clk 0:00:09.6]} 30. Qf5
{[%clk 0:00:11.2]} 30... Nc6 {[%clk 0:00:04.7]} 31. Rc7 {[%clk 0:00:06.9]} 31...
Rxd6 {[%clk 0:00:02.9]} 32. Bb1 {[%clk 0:00:07.3]} 1-0